[Event "*** Titled Tuesday Blitz"]
[Site "Chess.com"]
[Date "2021.03.09"]
[Round "7"]
[White "BeanScreen"]
[Black "Pilopa"]
[Result "0-1"]
[WhiteElo "2669"]
[BlackElo "2566"]
[TimeControl "180+1"]
[EndTime "11:22:25 PST"]
[Termination "Pilopa won on time"]

1. e4 {[%clk 0:03:00.9]} 1... Nc6 {[%clk 0:02:57.8]} 2. Nf3 {[%clk 0:03:00.9]}
2... d6 {[%clk 0:02:57.8]} 3. d4 {[%clk 0:03:00.5]} 3... Nf6 {[%clk 0:02:58.2]}
4. Nc3 {[%clk 0:02:58.5]} 4... g6 {[%clk 0:02:58.7]} 5. Bb5 {[%clk 0:02:54.2]}
5... a6 {[%clk 0:02:57.7]} 6. Bxc6+ {[%clk 0:02:54.2]} 6... bxc6 {[%clk
0:02:58.6]} 7. Qd3 {[%clk 0:02:54.1]} 7... Bg7 {[%clk 0:02:50.1]} 8. Qc4 {[%clk
0:02:52.1]} 8... Bb7 {[%clk 0:02:36.2]} 9. O-O {[%clk 0:02:47.7]} 9... O-O
{[%clk 0:02:35.8]} 10. Bf4 {[%clk 0:02:45.6]} 10... a5 {[%clk 0:02:25.5]} 11.
Rfe1 {[%clk 0:02:30.7]} 11... Qd7 {[%clk 0:02:20.3]} 12. e5 {[%clk 0:02:23]}
12... Nd5 {[%clk 0:02:20.3]} 13. Nxd5 {[%clk 0:01:45.6]} 13... cxd5 {[%clk
0:02:21.2]} 14. Qe2 {[%clk 0:01:45.4]} 14... Rfe8 {[%clk 0:02:05.1]} 15. Rad1
{[%clk 0:01:35.4]} 15... a4 {[%clk 0:02:03.7]} 16. Ng5 {[%clk 0:01:30.2]} 16...
Qf5 {[%clk 0:01:54.5]} 17. Qe3 {[%clk 0:01:20.2]} 17... a3 {[%clk 0:01:15.6]}
18. b3 {[%clk 0:01:17.1]} 18... c5 {[%clk 0:01:12.4]} 19. c3 {[%clk 0:01:10]}
19... cxd4 {[%clk 0:01:08.4]} 20. cxd4 {[%clk 0:01:10.9]} 20... dxe5 {[%clk
0:01:07.6]} 21. dxe5 {[%clk 0:01:09.9]} 21... Rac8 {[%clk 0:01:02.4]} 22. e6
{[%clk 0:01:05.8]} 22... f6 {[%clk 0:01:01.8]} 23. Nf3 {[%clk 0:01:05.3]} 23...
g5 {[%clk 0:00:58.6]} 24. Bg3 {[%clk 0:01:05.4]} 24... h5 {[%clk 0:00:49.4]} 25.
Nd4 {[%clk 0:01:04.8]} 25... Qe4 {[%clk 0:00:49.1]} 26. h4 {[%clk 0:00:59.6]}
26... Qxe3 {[%clk 0:00:48.7]} 27. Rxe3 {[%clk 0:00:59.2]} 27... g4 {[%clk
0:00:47.9]} 28. Bf4 {[%clk 0:00:58.6]} 28... Kh7 {[%clk 0:00:45.5]} 29. Nf5
{[%clk 0:00:52.8]} 29... Kg6 {[%clk 0:00:42.8]} 30. Nd4 {[%clk 0:00:52.5]} 30...
Ba6 {[%clk 0:00:24.2]} 31. Rd2 {[%clk 0:00:52.2]} 31... Rc1+ {[%clk 0:00:23.5]}
32. Kh2 {[%clk 0:00:52]} 32... Rec8 {[%clk 0:00:23.3]} 33. f3 {[%clk 0:00:47.2]}
33... Rf1 {[%clk 0:00:19.7]} 34. b4 {[%clk 0:00:31.7]} 34... Bc4 {[%clk
0:00:17.4]} 35. Rxa3 {[%clk 0:00:29.3]} 35... f5 {[%clk 0:00:14.8]} 36. Ra7
{[%clk 0:00:26.3]} 36... Bf6 {[%clk 0:00:13.7]} 37. Bg5 {[%clk 0:00:21.2]} 37...
Be5+ {[%clk 0:00:12.9]} 38. f4 {[%clk 0:00:19.8]} 38... Bxf4+ {[%clk 0:00:10.5]}
39. Bxf4 {[%clk 0:00:19.9]} 39... Rxf4 {[%clk 0:00:11.4]} 40. Rxe7 {[%clk
0:00:19]} 40... Rf1 {[%clk 0:00:11.5]} 41. Ne2 {[%clk 0:00:04.7]} 41... f4
{[%clk 0:00:09.5]} 42. Nxf4+ {[%clk 0:00:02.7]} 42... Rxf4 {[%clk 0:00:09]} 43.
Kg3 {[%clk 0:00:03]} 43... Re4 {[%clk 0:00:09.3]} 44. Rf2 {[%clk 0:00:02.6]}
44... Rc6 {[%clk 0:00:05.7]} 45. Rf8 {[%clk 0:00:01.7]} 45... Rexe6 {[%clk
0:00:05.8]} 46. Rg8+ {[%clk 0:00:01.6]} 46... Kf6 {[%clk 0:00:05.3]} 47. Rh7
{[%clk 0:00:01.6]} 47... Ke5 {[%clk 0:00:02.9]} 48. Rxh5+ {[%clk 0:00:01.5]}
48... Kd4 {[%clk 0:00:03.8]} 49. Rxg4+ {[%clk 0:00:01.1]} 49... Re4 {[%clk
0:00:04.5]} 50. Rxe4+ {[%clk 0:00:01.1]} 50... dxe4 {[%clk 0:00:05.3]} 0-1

[Event "*** Titled Tuesday Blitz"]
[Site "Chess.com"]
[Date "2021.03.09"]
[Round "7"]
[White "ErikBlomqvist"]
[Black "esapunov"]
[Result "1-0"]
[WhiteElo "2596"]
[BlackElo "2727"]
[TimeControl "180+1"]
[EndTime "11:22:29 PST"]
[Termination "ErikBlomqvist won by resignation"]

1. e4 {[%clk 0:03:00.9]} 1... c5 {[%clk 0:02:59.5]} 2. Nf3 {[%clk 0:03:00.8]}
2... d6 {[%clk 0:02:59.1]} 3. Bb5+ {[%clk 0:02:58.9]} 3... Nd7 {[%clk
0:02:58.4]} 4. a4 {[%clk 0:02:52.6]} 4... e6 {[%clk 0:02:56.4]} 5. O-O {[%clk
0:02:51.1]} 5... Nf6 {[%clk 0:02:56.5]} 6. Nc3 {[%clk 0:02:49.5]} 6... Be7
{[%clk 0:02:56.6]} 7. d4 {[%clk 0:02:47.8]} 7... cxd4 {[%clk 0:02:55.8]} 8. Qxd4
{[%clk 0:02:48.7]} 8... O-O {[%clk 0:02:53.7]} 9. Rd1 {[%clk 0:02:48.3]} 9...
Qc7 {[%clk 0:02:52.9]} 10. h3 {[%clk 0:02:45.9]} 10... Ne5 {[%clk 0:02:51.5]}
11. Be2 {[%clk 0:02:41.7]} 11... a6 {[%clk 0:02:46.2]} 12. Be3 {[%clk
0:02:33.7]} 12... Nfd7 {[%clk 0:02:40.8]} 13. a5 {[%clk 0:02:04.1]} 13... Rd8
{[%clk 0:02:25.6]} 14. Nxe5 {[%clk 0:01:47.8]} 14... Nxe5 {[%clk 0:02:16.6]} 15.
Na4 {[%clk 0:01:15.6]} 15... Bd7 {[%clk 0:02:00.5]} 16. Nb6 {[%clk 0:01:15]}
16... Rab8 {[%clk 0:02:00.8]} 17. c4 {[%clk 0:01:12.3]} 17... Be8 {[%clk
0:01:54.9]} 18. b4 {[%clk 0:01:11.7]} 18... Nd7 {[%clk 0:01:54.3]} 19. Qd2
{[%clk 0:01:06.1]} 19... Nf6 {[%clk 0:01:44.4]} 20. Bd3 {[%clk 0:01:02.8]} 20...
Bc6 {[%clk 0:01:44.1]} 21. Qc2 {[%clk 0:00:59.8]} 21... Be8 {[%clk 0:01:42.6]}
22. Rac1 {[%clk 0:00:59.9]} 22... Nd7 {[%clk 0:01:41.6]} 23. Be2 {[%clk
0:00:59]} 23... h6 {[%clk 0:01:39.5]} 24. Qb3 {[%clk 0:00:56.7]} 24... Bf6
{[%clk 0:01:38.6]} 25. Rd2 {[%clk 0:00:50.2]} 25... Bg5 {[%clk 0:01:20]} 26.
Rcd1 {[%clk 0:00:42.7]} 26... Bxe3 {[%clk 0:01:15.4]} 27. Qxe3 {[%clk
0:00:43.6]} 27... Nxb6 {[%clk 0:01:14.7]} 28. axb6 {[%clk 0:00:43.9]} 28... Qe7
{[%clk 0:01:14.4]} 29. Qf4 {[%clk 0:00:28.7]} 29... e5 {[%clk 0:01:12.8]} 30.
Qe3 {[%clk 0:00:29.1]} 30... Rbc8 {[%clk 0:01:11.9]} 31. c5 {[%clk 0:00:27]}
31... dxc5 {[%clk 0:01:05]} 32. Rxd8 {[%clk 0:00:23.8]} 32... Rxd8 {[%clk
0:01:04.4]} 33. bxc5 {[%clk 0:00:24.2]} 33... Bc6 {[%clk 0:01:00.5]} 34. Rxd8+
{[%clk 0:00:15.3]} 34... Qxd8 {[%clk 0:01:00.2]} 35. Bc4 {[%clk 0:00:15.6]}
35... Qd1+ {[%clk 0:00:54.6]} 36. Kh2 {[%clk 0:00:15.7]} 36... a5 {[%clk
0:00:51.1]} 37. Qc3 {[%clk 0:00:12.7]} 37... Qd4 {[%clk 0:00:45.4]} 38. Qxd4
{[%clk 0:00:10.7]} 38... exd4 {[%clk 0:00:45.6]} 39. f3 {[%clk 0:00:10.8]} 39...
g5 {[%clk 0:00:44.5]} 40. Kg1 {[%clk 0:00:10.4]} 40... Kg7 {[%clk 0:00:43]} 41.
Kf2 {[%clk 0:00:10.7]} 41... Kf6 {[%clk 0:00:40]} 42. Ke2 {[%clk 0:00:10.8]}
42... h5 {[%clk 0:00:40]} 43. Kd3 {[%clk 0:00:10.1]} 43... Ke5 {[%clk
0:00:40.4]} 44. h4 {[%clk 0:00:06.5]} 44... gxh4 {[%clk 0:00:39.1]} 45. Bxf7
{[%clk 0:00:05.8]} 45... h3 {[%clk 0:00:39.4]} 46. gxh3 {[%clk 0:00:05.5]} 46...
h4 {[%clk 0:00:40.1]} 47. f4+ {[%clk 0:00:02.5]} 47... Kxf4 {[%clk 0:00:38.9]}
48. Kxd4 {[%clk 0:00:03.4]} 48... Kg3 {[%clk 0:00:34.1]} 49. Bd5 {[%clk
0:00:03.8]} 49... Bd7 {[%clk 0:00:17.8]} 50. Bxb7 {[%clk 0:00:04.1]} 50... Bxh3
{[%clk 0:00:15.5]} 51. Bd5 {[%clk 0:00:03.7]} 51... Bc8 {[%clk 0:00:15.3]} 52.
c6 {[%clk 0:00:03.8]} 52... h3 {[%clk 0:00:15.4]} 53. b7 {[%clk 0:00:04.4]}
53... Bxb7 {[%clk 0:00:12.9]} 54. cxb7 {[%clk 0:00:05.3]} 54... h2 {[%clk
0:00:13.6]} 55. b8=Q+ {[%clk 0:00:05.1]} 1-0

[Event "*** Titled Tuesday Blitz"]
[Site "Chess.com"]
[Date "2021.03.09"]
[Round "7"]
[White "NikolaN98"]
[Black "Abund"]
[Result "0-1"]
[WhiteElo "2524"]
[BlackElo "2653"]
[TimeControl "180+1"]
[EndTime "11:22:31 PST"]
[Termination "Abund won by resignation"]

1. e4 {[%clk 0:03:00.2]} 1... c5 {[%clk 0:02:59.7]} 2. Nc3 {[%clk 0:02:59.8]}
2... d6 {[%clk 0:02:59.6]} 3. f4 {[%clk 0:03:00]} 3... g6 {[%clk 0:02:59.5]} 4.
Nf3 {[%clk 0:02:59.3]} 4... Bg7 {[%clk 0:02:59.7]} 5. Bb5+ {[%clk 0:02:58.4]}
5... Bd7 {[%clk 0:02:59.3]} 6. Bc4 {[%clk 0:02:58.3]} 6... Nc6 {[%clk
0:02:59.4]} 7. O-O {[%clk 0:02:53.1]} 7... e6 {[%clk 0:02:59.4]} 8. d3 {[%clk
0:02:53.3]} 8... Nge7 {[%clk 0:02:59.6]} 9. Qe1 {[%clk 0:02:46.9]} 9... O-O
{[%clk 0:02:44.6]} 10. Qh4 {[%clk 0:02:37.4]} 10... Nd4 {[%clk 0:02:02.1]} 11.
f5 {[%clk 0:02:31.5]} 11... gxf5 {[%clk 0:01:48.6]} 12. Bg5 {[%clk 0:02:13.3]}
12... f6 {[%clk 0:01:42.5]} 13. Bh6 {[%clk 0:02:04.6]} 13... Ng6 {[%clk
0:01:37.3]} 14. Qh5 {[%clk 0:01:58.1]} 14... fxe4 {[%clk 0:01:19.9]} 15. dxe4
{[%clk 0:01:54.4]} 15... Qe7 {[%clk 0:01:14.5]} 16. Rad1 {[%clk 0:01:49.5]}
16... Ne5 {[%clk 0:01:08.5]} 17. Nxd4 {[%clk 0:01:33.8]} 17... cxd4 {[%clk
0:00:51.5]} 18. Rxd4 {[%clk 0:01:34.7]} 18... d5 {[%clk 0:00:41.6]} 19. exd5
{[%clk 0:01:26.4]} 19... Qc5 {[%clk 0:00:41.8]} 20. Rf4 {[%clk 0:01:01.5]} 20...
Be8 {[%clk 0:00:32.2]} 21. Qh3 {[%clk 0:00:45.5]} 21... Nxc4 {[%clk 0:00:28.1]}
22. Rg4 {[%clk 0:00:24.8]} 22... Bg6 {[%clk 0:00:25]} 23. Na4 {[%clk 0:00:25.3]}
23... Qa5 {[%clk 0:00:19.3]} 24. Rd1 {[%clk 0:00:12.3]} 24... Qxa4 {[%clk
0:00:15.9]} 25. Bxg7 {[%clk 0:00:12.3]} 25... Kxg7 {[%clk 0:00:15.6]} 26. b3
{[%clk 0:00:12.6]} 26... Qd7 {[%clk 0:00:14.1]} 27. Rxc4 {[%clk 0:00:10.9]}
27... Rad8 {[%clk 0:00:12]} 28. Qe3 {[%clk 0:00:03.6]} 28... exd5 {[%clk
0:00:11.1]} 29. Rh4 {[%clk 0:00:03.7]} 29... Kg8 {[%clk 0:00:10.3]} 30. Qh6
{[%clk 0:00:04]} 30... Qg7 {[%clk 0:00:10.2]} 31. Qd2 {[%clk 0:00:04.2]} 31...
Rfe8 {[%clk 0:00:10.3]} 32. Rg4 {[%clk 0:00:04.7]} 32... Qf7 {[%clk 0:00:10]}
33. h4 {[%clk 0:00:05.1]} 33... Kh8 {[%clk 0:00:10.1]} 34. Rg3 {[%clk
0:00:05.7]} 34... Be4 {[%clk 0:00:10.2]} 35. Rf1 {[%clk 0:00:06.1]} 35... Rg8
{[%clk 0:00:10.2]} 36. Rxg8+ {[%clk 0:00:01.9]} 36... Rxg8 {[%clk 0:00:10.7]}
37. Rf2 {[%clk 0:00:01.7]} 37... Qg6 {[%clk 0:00:10.4]} 38. Qd4 {[%clk
0:00:02.2]} 38... Kg7 {[%clk 0:00:09]} 39. Kh1 {[%clk 0:00:02.7]} 39... h5
{[%clk 0:00:08.9]} 40. Kg1 {[%clk 0:00:03.3]} 40... Re8 {[%clk 0:00:09.2]} 41.
Kf1 {[%clk 0:00:03.5]} 41... Re5 {[%clk 0:00:09.4]} 42. c4 {[%clk 0:00:03.6]}
42... Rf5 {[%clk 0:00:09.5]} 43. cxd5 {[%clk 0:00:03.1]} 43... Qxg2+ {[%clk
0:00:09.7]} 44. Ke1 {[%clk 0:00:03.1]} 44... Qg1+ {[%clk 0:00:09.9]} 45. Ke2
{[%clk 0:00:03.6]} 45... Rxf2+ {[%clk 0:00:10.2]} 46. Qxf2 {[%clk 0:00:03.9]}
46... Qxf2+ {[%clk 0:00:11.1]} 47. Kxf2 {[%clk 0:00:04.8]} 47... Bxd5 {[%clk
0:00:11.5]} 48. Ke3 {[%clk 0:00:05.1]} 48... Bc6 {[%clk 0:00:12.4]} 49. Kd4
{[%clk 0:00:05.6]} 49... Kg6 {[%clk 0:00:12.8]} 0-1

[Event "*** Titled Tuesday Blitz"]
[Site "Chess.com"]
[Date "2021.03.09"]
[Round "7"]
[White "samidescalona2002"]
[Black "DrCeltic"]
[Result "0-1"]
[WhiteElo "2283"]
[BlackElo "2481"]
[TimeControl "180+1"]
[EndTime "11:22:35 PST"]
[Termination "DrCeltic won by checkmate"]

1. d4 {[%clk 0:02:57.4]} 1... d5 {[%clk 0:02:59.7]} 2. Bf4 {[%clk 0:02:55.6]}
2... Nf6 {[%clk 0:02:59.6]} 3. e3 {[%clk 0:02:55.9]} 3... e6 {[%clk 0:03:00]} 4.
Nf3 {[%clk 0:02:55.1]} 4... Bd6 {[%clk 0:03:00.9]} 5. Bg3 {[%clk 0:02:55.4]}
5... O-O {[%clk 0:03:00.9]} 6. Nbd2 {[%clk 0:02:54.9]} 6... b6 {[%clk
0:03:01.1]} 7. Bd3 {[%clk 0:02:54.4]} 7... Ba6 {[%clk 0:02:59.9]} 8. O-O {[%clk
0:02:54.2]} 8... Bxd3 {[%clk 0:02:59.8]} 9. cxd3 {[%clk 0:02:55.1]} 9... c5
{[%clk 0:02:56.7]} 10. Qa4 {[%clk 0:02:45.7]} 10... a6 {[%clk 0:02:50.6]} 11.
Bxd6 {[%clk 0:02:35.4]} 11... Qxd6 {[%clk 0:02:49.8]} 12. dxc5 {[%clk
0:02:25.9]} 12... bxc5 {[%clk 0:02:48.3]} 13. Rfc1 {[%clk 0:02:24.1]} 13... Nbd7
{[%clk 0:02:46.9]} 14. Rc2 {[%clk 0:02:18.4]} 14... Rfb8 {[%clk 0:02:40.3]} 15.
Rac1 {[%clk 0:02:17.5]} 15... h6 {[%clk 0:02:36.5]} 16. b3 {[%clk 0:02:15.5]}
16... Rb4 {[%clk 0:02:31.5]} 17. Qa5 {[%clk 0:02:13.4]} 17... Rb5 {[%clk
0:02:24.2]} 18. Qa3 {[%clk 0:02:08.3]} 18... Qb6 {[%clk 0:01:55.8]} 19. d4
{[%clk 0:02:06.6]} 19... cxd4 {[%clk 0:01:52]} 20. Nxd4 {[%clk 0:02:01.3]} 20...
Ra5 {[%clk 0:01:51.9]} 21. Qb2 {[%clk 0:01:19.7]} 21... Rc5 {[%clk 0:01:49.5]}
22. Rxc5 {[%clk 0:01:05.7]} 22... Nxc5 {[%clk 0:01:50.4]} 23. Qc2 {[%clk
0:01:05.4]} 23... Nce4 {[%clk 0:01:45.3]} 24. N2f3 {[%clk 0:01:03.6]} 24... a5
{[%clk 0:01:42.8]} 25. Ne5 {[%clk 0:00:59.4]} 25... Qd6 {[%clk 0:01:31.6]} 26.
Qc7 {[%clk 0:00:55.6]} 26... Qxc7 {[%clk 0:01:25.4]} 27. Rxc7 {[%clk 0:00:56.5]}
27... Nd6 {[%clk 0:01:23.8]} 28. Rc6 {[%clk 0:00:48.7]} 28... Nfe8 {[%clk
0:01:05.7]} 29. Nd7 {[%clk 0:00:33.8]} 29... a4 {[%clk 0:00:57.3]} 30. b4 {[%clk
0:00:32.9]} 30... Nc4 {[%clk 0:00:44.8]} 31. b5 {[%clk 0:00:31.2]} 31... Rd8
{[%clk 0:00:33.2]} 32. Nc5 {[%clk 0:00:25.6]} 32... Ned6 {[%clk 0:00:27.4]} 33.
b6 {[%clk 0:00:23.6]} 33... Na5 {[%clk 0:00:20.3]} 34. Rc7 {[%clk 0:00:21.7]}
34... Rb8 {[%clk 0:00:20.1]} 35. Nd7 {[%clk 0:00:21.1]} 35... Rc8 {[%clk
0:00:18.7]} 36. Nb5 {[%clk 0:00:10.8]} 36... Rxc7 {[%clk 0:00:14.4]} 37. bxc7
{[%clk 0:00:09.8]} 37... Nc8 {[%clk 0:00:13.3]} 38. Kf1 {[%clk 0:00:08.4]} 38...
Nb7 {[%clk 0:00:13.4]} 39. Ke2 {[%clk 0:00:06.8]} 39... f6 {[%clk 0:00:13.6]}
40. Kd3 {[%clk 0:00:04.4]} 40... Kf7 {[%clk 0:00:13.7]} 41. Nc3 {[%clk
0:00:04.4]} 41... Ke7 {[%clk 0:00:12.9]} 42. Nb8 {[%clk 0:00:04.4]} 42... Kd6
{[%clk 0:00:11.9]} 43. Nb5+ {[%clk 0:00:03.4]} 43... Kc5 {[%clk 0:00:11.8]} 44.
Nd4 {[%clk 0:00:03.5]} 44... Kd6 {[%clk 0:00:10.8]} 45. Nb5+ {[%clk 0:00:03.5]}
45... Kc5 {[%clk 0:00:09.6]} 46. Nc3 {[%clk 0:00:03.7]} 46... Kb6 {[%clk
0:00:09.5]} 47. Nxa4+ {[%clk 0:00:02.3]} 47... Kxc7 {[%clk 0:00:09.8]} 48. Na6+
{[%clk 0:00:02.5]} 48... Kc6 {[%clk 0:00:10.1]} 49. Nb4+ {[%clk 0:00:03.4]}
49... Kb5 {[%clk 0:00:09.7]} 50. Nc3+ {[%clk 0:00:04.3]} 50... Kxb4 {[%clk
0:00:09.9]} 51. Ne2 {[%clk 0:00:04.8]} 51... Nc5+ {[%clk 0:00:09.5]} 52. Kd4
{[%clk 0:00:04.9]} 52... Nb6 {[%clk 0:00:08.5]} 53. f3 {[%clk 0:00:03.6]} 53...
e5# {[%clk 0:00:08.2]} 0-1

[Event "*** Titled Tuesday Blitz"]
[Site "Chess.com"]
[Date "2021.03.09"]
[Round "7"]
[White "coco_crc"]
[Black "Agoking701"]
[Result "0-1"]
[WhiteElo "2203"]
[BlackElo "2355"]
[TimeControl "180+1"]
[EndTime "11:22:35 PST"]
[Termination "Agoking701 won on time"]

1. e4 {[%clk 0:03:00.9]} 1... c5 {[%clk 0:02:58.1]} 2. Nf3 {[%clk 0:03:00.9]}
2... d6 {[%clk 0:02:58.6]} 3. d4 {[%clk 0:03:00.3]} 3... cxd4 {[%clk 0:02:59.5]}
4. Nxd4 {[%clk 0:03:01.1]} 4... Nf6 {[%clk 0:03:00.3]} 5. Nc3 {[%clk 0:03:01.6]}
5... a6 {[%clk 0:03:00.9]} 6. Bc4 {[%clk 0:03:02.2]} 6... e6 {[%clk 0:03:00.2]}
7. Bb3 {[%clk 0:03:02.8]} 7... Nbd7 {[%clk 0:02:58]} 8. O-O {[%clk 0:03:01.2]}
8... Nc5 {[%clk 0:02:58]} 9. f4 {[%clk 0:03:01.6]} 9... Qc7 {[%clk 0:02:56.8]}
10. f5 {[%clk 0:02:59.8]} 10... e5 {[%clk 0:02:52.1]} 11. Nde2 {[%clk
0:02:58.5]} 11... Nxb3 {[%clk 0:02:47.4]} 12. cxb3 {[%clk 0:02:55.7]} 12... b5
{[%clk 0:02:42]} 13. Be3 {[%clk 0:02:50.3]} 13... Bb7 {[%clk 0:02:39.1]} 14. Rc1
{[%clk 0:02:49.1]} 14... Qd7 {[%clk 0:02:38.2]} 15. Bg5 {[%clk 0:02:42.1]} 15...
Be7 {[%clk 0:02:28.8]} 16. Bxf6 {[%clk 0:02:36.4]} 16... Bxf6 {[%clk 0:02:29.7]}
17. Nd5 {[%clk 0:02:36.8]} 17... Rc8 {[%clk 0:02:24.7]} 18. Qd2 {[%clk
0:02:23.8]} 18... Rc6 {[%clk 0:01:46.1]} 19. Rxc6 {[%clk 0:02:14.1]} 19... Bxc6
{[%clk 0:01:47]} 20. Rc1 {[%clk 0:02:14.5]} 20... h6 {[%clk 0:01:26.9]} 21.
Nxf6+ {[%clk 0:02:05.2]} 21... gxf6 {[%clk 0:01:27.8]} 22. Nc3 {[%clk
0:02:05.4]} 22... Ke7 {[%clk 0:01:15.9]} 23. Nd5+ {[%clk 0:01:54.3]} 23... Bxd5
{[%clk 0:01:15.4]} 24. Qxd5 {[%clk 0:01:55.2]} 24... Rc8 {[%clk 0:01:14.7]} 25.
Rc3 {[%clk 0:01:51.9]} 25... Qa7+ {[%clk 0:00:54.6]} 26. Kh1 {[%clk 0:01:46]}
26... Rxc3 {[%clk 0:00:54.1]} 27. bxc3 {[%clk 0:01:46.9]} 27... Qe3 {[%clk
0:00:46.3]} 28. h3 {[%clk 0:01:42]} 28... Qxc3 {[%clk 0:00:39.2]} 29. Qb7+
{[%clk 0:01:41.5]} 29... Kf8 {[%clk 0:00:39.6]} 30. Qxa6 {[%clk 0:01:12]} 30...
Qe1+ {[%clk 0:00:35.5]} 31. Kh2 {[%clk 0:01:10.7]} 31... Qxe4 {[%clk 0:00:36.4]}
32. Qxb5 {[%clk 0:00:53.6]} 32... d5 {[%clk 0:00:31.5]} 33. a4 {[%clk
0:00:47.7]} 33... d4 {[%clk 0:00:29.3]} 34. Qb4+ {[%clk 0:00:40.2]} 34... Kg7
{[%clk 0:00:24.9]} 35. a5 {[%clk 0:00:41.1]} 35... Qf4+ {[%clk 0:00:23.4]} 36.
Kg1 {[%clk 0:00:39.4]} 36... Qe3+ {[%clk 0:00:20.9]} 37. Kh2 {[%clk 0:00:35.7]}
37... Qf4+ {[%clk 0:00:17.5]} 38. Kg1 {[%clk 0:00:34.7]} 38... Qc1+ {[%clk
0:00:17.7]} 39. Kh2 {[%clk 0:00:33.8]} 39... d3 {[%clk 0:00:15.5]} 40. a6 {[%clk
0:00:28.9]} 40... d2 {[%clk 0:00:14.3]} 41. Qg4+ {[%clk 0:00:21.7]} 41... Kh7
{[%clk 0:00:13.1]} 42. a7 {[%clk 0:00:22.6]} 42... d1=Q {[%clk 0:00:12.5]} 43.
Qxd1 {[%clk 0:00:13]} 43... Qxd1 {[%clk 0:00:12.5]} 44. a8=Q {[%clk 0:00:13.9]}
44... Qxb3 {[%clk 0:00:11.8]} 45. Qe4 {[%clk 0:00:11]} 45... Qb6 {[%clk
0:00:08.3]} 46. Kg3 {[%clk 0:00:10.3]} 46... Qd6 {[%clk 0:00:07.8]} 47. Qg4
{[%clk 0:00:07.4]} 47... Qd2 {[%clk 0:00:07.6]} 48. Kf3 {[%clk 0:00:05.2]} 48...
Qd3+ {[%clk 0:00:06.5]} 49. Kf2 {[%clk 0:00:05]} 49... e4 {[%clk 0:00:07]} 50.
Qh5 {[%clk 0:00:01.6]} 50... e3+ {[%clk 0:00:06.8]} 0-1

[Event "*** Titled Tuesday Blitz"]
[Site "Chess.com"]
[Date "2021.03.09"]
[Round "7"]
[White "Anna_ChessMate"]
[Black "dretch"]
[Result "0-1"]
[WhiteElo "2582"]
[BlackElo "2853"]
[TimeControl "180+1"]
[EndTime "11:22:36 PST"]
[Termination "dretch won on time"]

1. d4 {[%clk 0:03:00.5]} 1... d5 {[%clk 0:03:00]} 2. c4 {[%clk 0:02:57.5]} 2...
c6 {[%clk 0:02:59.5]} 3. Nc3 {[%clk 0:02:32.4]} 3... dxc4 {[%clk 0:02:59.3]} 4.
Nf3 {[%clk 0:02:25.7]} 4... Nf6 {[%clk 0:02:57.6]} 5. a4 {[%clk 0:02:24.1]} 5...
Bf5 {[%clk 0:02:56.8]} 6. Ne5 {[%clk 0:02:23.5]} 6... Nbd7 {[%clk 0:02:55.5]} 7.
Nxc4 {[%clk 0:02:23.4]} 7... Nb6 {[%clk 0:02:55.8]} 8. Ne5 {[%clk 0:02:18.6]}
8... a5 {[%clk 0:02:54.9]} 9. f3 {[%clk 0:01:57.5]} 9... Nfd7 {[%clk 0:02:54.2]}
10. Nd3 {[%clk 0:01:55.6]} 10... Bxd3 {[%clk 0:02:53.1]} 11. Qxd3 {[%clk
0:01:54.2]} 11... e5 {[%clk 0:02:53.3]} 12. e4 {[%clk 0:01:46.9]} 12... Qh4+
{[%clk 0:02:32.2]} 13. g3 {[%clk 0:01:40.8]} 13... Qf6 {[%clk 0:02:33.1]} 14. d5
{[%clk 0:01:30.1]} 14... Nc5 {[%clk 0:02:31.1]} 15. Qe3 {[%clk 0:01:28.8]} 15...
cxd5 {[%clk 0:02:28.9]} 16. exd5 {[%clk 0:01:29.7]} 16... O-O-O {[%clk
0:02:25.4]} 17. Ne4 {[%clk 0:01:07.8]} 17... Nxd5 {[%clk 0:01:51.7]} 18. Nxf6
{[%clk 0:00:57.6]} 18... Nxe3 {[%clk 0:01:51.9]} 19. Bxe3 {[%clk 0:00:55.8]}
19... gxf6 {[%clk 0:01:51.7]} 20. Bc4 {[%clk 0:00:33.9]} 20... Ne6 {[%clk
0:01:43]} 21. O-O {[%clk 0:00:25.7]} 21... Bb4 {[%clk 0:01:39.6]} 22. f4 {[%clk
0:00:24.5]} 22... e4 {[%clk 0:01:33]} 23. f5 {[%clk 0:00:23.6]} 23... Nd4 {[%clk
0:01:25]} 24. Bxf7 {[%clk 0:00:23.2]} 24... Nf3+ {[%clk 0:01:23.3]} 25. Kg2
{[%clk 0:00:20.6]} 25... Bd2 {[%clk 0:01:19.3]} 26. Bb6 {[%clk 0:00:16.8]} 26...
Rd6 {[%clk 0:01:14.6]} 27. Bc5 {[%clk 0:00:15.8]} 27... Rc6 {[%clk 0:01:14.2]}
28. Bf2 {[%clk 0:00:12]} 28... Rc2 {[%clk 0:01:07.9]} 29. Bd5 {[%clk 0:00:10.5]}
29... Re8 {[%clk 0:00:50.2]} 30. Bxe4 {[%clk 0:00:08.9]} 30... Nh4+ {[%clk
0:00:44.8]} 31. gxh4 {[%clk 0:00:09.8]} 31... Rxe4 {[%clk 0:00:44.8]} 32. b3
{[%clk 0:00:08.4]} 32... Rf4 {[%clk 0:00:32.6]} 33. Kg3 {[%clk 0:00:08.2]} 33...
Rxf5 {[%clk 0:00:31.2]} 34. Bd4 {[%clk 0:00:08.8]} 34... Rxf1 {[%clk 0:00:22]}
35. Rxf1 {[%clk 0:00:09.7]} 35... Bc3 {[%clk 0:00:20.6]} 36. Bxf6 {[%clk
0:00:07.9]} 36... Kd7 {[%clk 0:00:12]} 37. h3 {[%clk 0:00:05.6]} 37... Ke6
{[%clk 0:00:11.7]} 38. Bg5 {[%clk 0:00:04.5]} 38... Be5+ {[%clk 0:00:11.3]} 39.
Kg4 {[%clk 0:00:04.5]} 39... Rc3 {[%clk 0:00:11.2]} 40. Rf3 {[%clk 0:00:04.8]}
40... Rxf3 {[%clk 0:00:10.9]} 41. Kxf3 {[%clk 0:00:05.7]} 41... Kf5 {[%clk
0:00:11.6]} 42. Ke3 {[%clk 0:00:05.6]} 42... h5 {[%clk 0:00:10.9]} 43. Kd3
{[%clk 0:00:05.4]} 43... Bf4 {[%clk 0:00:10.8]} 44. Bd8 {[%clk 0:00:04.6]} 44...
Bg3 {[%clk 0:00:09.4]} 45. Kc4 {[%clk 0:00:04.7]} 45... Be1 {[%clk 0:00:08.8]}
46. Kb5 {[%clk 0:00:05]} 46... Ke4 {[%clk 0:00:09]} 47. Kb6 {[%clk 0:00:05.1]}
47... Kd4 {[%clk 0:00:07.9]} 48. Kxb7 {[%clk 0:00:03.9]} 48... Kc5 {[%clk
0:00:08.2]} 49. Ka6 {[%clk 0:00:03.6]} 49... Kc6 {[%clk 0:00:08.2]} 50. Bxa5
{[%clk 0:00:03.2]} 50... Bxh4 {[%clk 0:00:08.4]} 51. Bd2 {[%clk 0:00:02.7]}
51... Bf2 {[%clk 0:00:08.1]} 52. b4 {[%clk 0:00:03]} 52... Kd5 {[%clk
0:00:07.3]} 53. b5 {[%clk 0:00:03.2]} 53... Bc5 {[%clk 0:00:06.1]} 54. b6 {[%clk
0:00:02.6]} 54... Kc6 {[%clk 0:00:06.3]} 55. b7 {[%clk 0:00:01.5]} 55... Bd6
{[%clk 0:00:06.7]} 0-1